fUST/lending_fUST_20260602
["ID","MTS","AMOUNT","RATE_DAILY","PERIOD"]
[423739749,1780360241000,-500.0,0.00013698,2]
[423739787,1780360241000,-500.0,0.00013698,2]
[423739748,1780360241000,-500.0,0.00013698,2]
[423739720,1780360241000,-554.4,0.00013698,2]
[423739722,1780360241000,-554.4,0.00013698,2]
[423739721,1780360241000,-554.4,0.00013698,2]
[423739719,1780360241000,-554.4,0.00013698,2]
[423739725,1780360241000,-554.4,0.00013698,2]
[423739724,1780360241000,-500.0,0.00013698,2]
[423739723,1780360241000,-554.4,0.00013698,2]
[423739729,1780360241000,-554.4,0.00013698,2]
[423739751,1780360241000,-500.0,0.00013698,2]
[423739742,1780360241000,-500.0,0.00013698,2]
[423739736,1780360241000,-467.95381726,0.00013698,2]
[423739743,1780360241000,-500.0,0.00013698,2]
[423739731,1780360241000,-11991.94,0.00013698,2]
[423739732,1780360241000,-554.4,0.00013698,2]
[423739734,1780360241000,-554.43778963,0.00013698,2]
[423739730,1780360241000,-554.4,0.00013698,2]
[423739740,1780360241000,-500.0,0.00013698,2]
[423739733,1780360241000,-554.4,0.00013698,2]
[423739747,1780360241000,-2420.62,0.00013698,2]
[423739746,1780360241000,-500.0,0.00013698,2]
[423739757,1780360241000,-500.0,0.00013698,2]
[423739744,1780360241000,-411.47736209,0.00013698,2]
[423739756,1780360241000,-500.60188389,0.00013698,2]
[423739754,1780360241000,-500.0,0.00013698,2]
[423739750,1780360241000,-500.0,0.00013698,2]
[423739745,1780360241000,-500.99678708,0.00013698,2]
[423739739,1780360241000,-500.0,0.00013698,2]
[423739737,1780360241000,-500.0,0.00013698,2]
[423739741,1780360241000,-500.0,0.00013698,2]
[423739735,1780360241000,-500.0,0.00013698,2]
[423739738,1780360241000,-500.0,0.00013698,2]
[423739755,1780360241000,-500.0,0.00013698,2]
[423739831,1780360242000,-500.0,0.00013698,2]
[423739830,1780360242000,-598.65,0.00013698,2]
[423739833,1780360242000,-500.0,0.00013698,2]
[423739826,1780360242000,-638.97,0.00013698,2]
[423739829,1780360242000,-500.0,0.00013698,2]
[423739825,1780360242000,-500.0,0.00013698,2]
[423739835,1780360242000,-472.3487318,0.00013698,2]
[423739823,1780360242000,-500.0,0.00013698,2]
[423739836,1780360242000,-500.0,0.00013698,2]
[423739834,1780360242000,-500.0,0.00013698,2]
[423739824,1780360242000,-500.0,0.00013698,2]
[423739819,1780360242000,-500.0,0.00013698,2]
[423739828,1780360242000,-500.0,0.00013698,2]
[423739832,1780360242000,-500.0,0.00013698,2]
[423739852,1780360242000,-163.82146586,0.00013698,2]
[423739837,1780360242000,-264.94053097,0.00013698,2]
[423739816,1780360242000,-5578.401852,0.00013698,2]
[423739849,1780360242000,-500.0,0.00013698,2]
[423739844,1780360242000,-293.41706525,0.00013698,2]
[423739843,1780360242000,-502.34078773,0.00013698,2]
[423739850,1780360242000,-500.0,0.00013698,2]
[423739847,1780360242000,-421.8,0.00013698,2]
[423739827,1780360242000,-500.0,0.00013698,2]
[423739838,1780360242000,-588.59,0.00013698,2]
[423739848,1780360242000,-1548.04,0.00013698,2]
[423739842,1780360242000,-501.47277069,0.00013698,2]
[423739845,1780360242000,-770.54,0.00013698,2]
[423739841,1780360242000,-500.0,0.00013698,2]
[423739840,1780360242000,-500.0,0.00013698,2]
[423739839,1780360242000,-1562.39,0.00013698,2]
[423739846,1780360242000,-500.0,0.00013698,2]
[423739820,1780360242000,-5578.401852,0.00013698,2]
[423739801,1780360242000,-314.74062126,0.00013698,2]
[423739812,1780360242000,-5578.401852,0.00013698,2]
[423739860,1780360242000,-500.0,0.00013698,2]
[423739795,1780360242000,-500.0,0.00013698,2]
[423739789,1780360242000,-500.0,0.00013698,2]
[423739794,1780360242000,-500.0,0.00013698,2]
[423739793,1780360242000,-500.0,0.00013698,2]
[423739790,1780360242000,-2426.39,0.00013698,2]
[423739796,1780360242000,-500.0,0.00013698,2]
[423739788,1780360242000,-892.13,0.00013698,2]
[423739791,1780360242000,-500.0,0.00013698,2]
[423739792,1780360242000,-500.0,0.00013698,2]
[423739798,1780360242000,-500.0,0.00013698,2]
[423739805,1780360242000,-500.0,0.00013698,2]
[423739806,1780360242000,-500.0,0.00013698,2]
[423739797,1780360242000,-957.8,0.00013698,2]
[423739815,1780360242000,-5578.401852,0.00013698,2]
[423739807,1780360242000,-500.0,0.00013698,2]
[423739808,1780360242000,-500.0,0.00013698,2]
[423739800,1780360242000,-641.76372271,0.00013698,2]
[423739799,1780360242000,-1819.03,0.00013698,2]
[423739804,1780360242000,-500.0,0.00013698,2]
[423739802,1780360242000,-500.0,0.00013698,2]
[423739803,1780360242000,-500.0,0.00013698,2]
[423739810,1780360242000,-500.0,0.00013698,2]
[423739811,1780360242000,-500.0,0.00013698,2]
[423739818,1780360242000,-5578.401852,0.00013698,2]
[423739822,1780360242000,-500.0,0.00013698,2]
[423739817,1780360242000,-5578.401852,0.00013698,2]
[423739821,1780360242000,-5578.401852,0.00013698,2]
[423739813,1780360242000,-5578.401852,0.00013698,2]
[423739814,1780360242000,-2425.26,0.00013698,2]
[423739809,1780360242000,-585.91,0.00013698,2]
[423739863,1780360242000,-500.0,0.00013698,2]
[423739920,1780360242000,-151.0,0.00013699,2]
[423739864,1780360242000,-283.27611127,0.00013698,2]
[423739889,1780360242000,-151.0,0.00013699,2]
[423739887,1780360242000,-500.0,0.00013698,2]
[423739893,1780360242000,-151.0,0.00013699,2]
[423739894,1780360242000,-151.0,0.00013699,2]
[423739903,1780360242000,-151.0,0.00013699,2]
[423739905,1780360242000,-151.0,0.00013699,2]
[423739898,1780360242000,-151.0,0.00013699,2]
[423739899,1780360242000,-151.0,0.00013699,2]
[423739904,1780360242000,-151.0,0.00013699,2]
[423739902,1780360242000,-151.0,0.00013699,2]
[423739897,1780360242000,-151.0,0.00013699,2]
[423739895,1780360242000,-151.0,0.00013699,2]
[423739900,1780360242000,-151.0,0.00013699,2]
[423739896,1780360242000,-151.0,0.00013699,2]
[423739888,1780360242000,-500.0,0.00013698,2]
[423739901,1780360242000,-151.0,0.00013699,2]
[423739917,1780360242000,-151.0,0.00013699,2]
[423739906,1780360242000,-151.0,0.00013699,2]
[423739918,1780360242000,-151.0,0.00013699,2]
[423739910,1780360242000,-151.0,0.00013699,2]
[423739909,1780360242000,-151.0,0.00013699,2]
[423739913,1780360242000,-151.0,0.00013699,2]
[423739915,1780360242000,-151.0,0.00013699,2]
[423739911,1780360242000,-151.0,0.00013699,2]
[423739912,1780360242000,-151.0,0.00013699,2]
[423739914,1780360242000,-151.0,0.00013699,2]
[423739908,1780360242000,-151.0,0.00013699,2]
[423739916,1780360242000,-151.0,0.00013699,2]
[423739919,1780360242000,-151.0,0.00013699,2]
[423739861,1780360242000,-500.0,0.00013698,2]
[423739907,1780360242000,-151.0,0.00013699,2]
[423739885,1780360242000,-500.0,0.00013698,2]
[423739921,1780360242000,-151.0,0.00013699,2]
[423739884,1780360242000,-807.79,0.00013698,2]
[423739882,1780360242000,-500.0,0.00013698,2]
[423739854,1780360242000,-500.0,0.00013698,2]
[423739853,1780360242000,-500.0,0.00013698,2]
[423739851,1780360242000,-500.0,0.00013698,2]
[423739859,1780360242000,-563.81,0.00013698,2]
[423739855,1780360242000,-500.0,0.00013698,2]
[423739858,1780360242000,-737.19,0.00013698,2]
[423739856,1780360242000,-500.0,0.00013698,2]
[423739857,1780360242000,-152.71657739,0.00013698,2]
[423739865,1780360242000,-500.0,0.00013698,2]
[423739867,1780360242000,-500.0,0.00013698,2]
[423739873,1780360242000,-500.0,0.00013698,2]
[423739877,1780360242000,-500.0,0.00013698,2]
[423739868,1780360242000,-348.71356777,0.00013698,2]
[423739878,1780360242000,-500.0,0.00013698,2]
[423739862,1780360242000,-500.0,0.00013698,2]
[423739866,1780360242000,-500.0,0.00013698,2]
[423739881,1780360242000,-500.69855527,0.00013698,2]
[423739883,1780360242000,-600.13,0.00013698,2]
[423739891,1780360242000,-151.0,0.00013699,2]
[423739886,1780360242000,-500.0,0.00013698,2]
[423739872,1780360242000,-845.4,0.00013698,2]
[423739892,1780360242000,-151.0,0.00013699,2]
[423739890,1780360242000,-151.0,0.00013699,2]
[423739879,1780360242000,-500.0,0.00013698,2]
[423739870,1780360242000,-500.0,0.00013698,2]
[423739869,1780360242000,-500.0,0.00013698,2]
[423739876,1780360242000,-500.0,0.00013698,2]
[423739874,1780360242000,-500.0,0.00013698,2]
[423739871,1780360242000,-500.0,0.00013698,2]
[423739875,1780360242000,-500.0,0.00013698,2]
[423739880,1780360242000,-500.0,0.00013698,2]
[423739962,1780360243000,-500.0,0.00013972,2]
[423739974,1780360243000,-500.0,0.00013972,2]
[423739973,1780360243000,-918.08,0.00013972,2]
[423739969,1780360243000,-500.0,0.00013972,2]
[423739971,1780360243000,-362.22094425,0.00013972,2]
[423739950,1780360243000,-500.0,0.00013972,2]
[423739958,1780360243000,-500.0,0.00013972,2]
[423739960,1780360243000,-500.0,0.00013972,2]
[423739988,1780360243000,-1034.24,0.00013972,2]
[423739967,1780360243000,-500.0,0.00013972,2]
[423739966,1780360243000,-500.0,0.00013972,2]
[423739959,1780360243000,-510.26,0.00013972,2]
[423739961,1780360243000,-514.99,0.00013972,2]
[423739964,1780360243000,-500.0,0.00013972,2]
[423739989,1780360243000,-274.65,0.00013972,2]
[423739975,1780360243000,-814.52,0.00013972,2]
[423739976,1780360243000,-500.0,0.00013972,2]
[423739979,1780360243000,-500.0,0.00013972,2]
[423739990,1780360243000,-500.0,0.00013972,2]
[423739991,1780360243000,-500.0,0.00013972,2]
[423739978,1780360243000,-500.0,0.00013972,2]
[423739981,1780360243000,-500.0,0.00013972,2]
[423739982,1780360243000,-500.0,0.00013972,2]
[423739986,1780360243000,-500.0,0.00013972,2]
[423739980,1780360243000,-500.0,0.00013972,2]
[423739987,1780360243000,-500.0,0.00013972,2]
[423739985,1780360243000,-500.0,0.00013972,2]
[423739983,1780360243000,-500.0,0.00013972,2]
[423739951,1780360243000,-529.11,0.00013972,2]
[423739977,1780360243000,-500.0,0.00013972,2]
[423739955,1780360243000,-500.0,0.00013972,2]
[423739933,1780360243000,-500.0,0.00013972,2]
[423739947,1780360243000,-500.0,0.00013972,2]
[423739924,1780360243000,-795.0,0.000137,2]
[423739922,1780360243000,-151.0,0.00013699,2]
[423739923,1780360243000,-163.09597555,0.00013699,2]
[423739926,1780360243000,-500.0,0.00013971,2]
[423739927,1780360243000,-500.0,0.00013971,2]
[423739928,1780360243000,-500.0,0.00013971,2]
[423739929,1780360243000,-500.0,0.00013971,2]
[423739925,1780360243000,-350.54976097,0.00013932,2]
[423739930,1780360243000,-395.81480997,0.00013971,2]
[423739931,1780360243000,-200.0,0.00013971,2]
[423739932,1780360243000,-500.0,0.00013972,2]
[423739934,1780360243000,-559.546742,0.00013972,2]
[423739942,1780360243000,-500.0,0.00013972,2]
[423739943,1780360243000,-531.40014633,0.00013972,2]
[423739954,1780360243000,-500.0,0.00013972,2]
[423739944,1780360243000,-506.79807882,0.00013972,2]
[423739935,1780360243000,-400.6,0.00013972,2]
[423739939,1780360243000,-560.63,0.00013972,2]
[423739940,1780360243000,-500.0,0.00013972,2]
[423739937,1780360243000,-500.0,0.00013972,2]
[423739936,1780360243000,-500.0,0.00013972,2]
[423739941,1780360243000,-500.0,0.00013972,2]
[423739938,1780360243000,-389.83,0.00013972,2]
[423739948,1780360243000,-500.0,0.00013972,2]
[423739946,1780360243000,-500.0,0.00013972,2]
[423739949,1780360243000,-342.38284647,0.00013972,2]
[423739952,1780360243000,-500.0,0.00013972,2]
[423739953,1780360243000,-593.0,0.00013972,2]
[423739956,1780360243000,-583.81,0.00013972,2]
[423739957,1780360243000,-618.84274705,0.00013972,2]
[423739945,1780360243000,-500.0,0.00013972,2]
[423739984,1780360243000,-288.30817495,0.00013972,2]
[423740014,1780360243000,-500.0,0.00013972,2]
[423739994,1780360243000,-500.0,0.00013972,2]
[423740031,1780360243000,-500.0,0.00013972,2]
[423740032,1780360243000,-500.0,0.00013972,2]
[423740030,1780360243000,-500.0,0.00013972,2]
[423740034,1780360243000,-500.0,0.00013972,2]
[423740033,1780360243000,-500.0,0.00013972,2]
[423740029,1780360243000,-500.0,0.00013972,2]
[423740035,1780360243000,-500.0,0.00013972,2]
[423740042,1780360243000,-500.0,0.00013972,2]
[423740038,1780360243000,-500.0,0.00013972,2]
[423740037,1780360243000,-500.0,0.00013972,2]
[423740040,1780360243000,-500.0,0.00013972,2]
[423740036,1780360243000,-11991.94,0.00013972,2]
[423740039,1780360243000,-500.0,0.00013972,2]
[423740044,1780360243000,-500.0,0.00013972,2]
[423740028,1780360243000,-500.0,0.00013972,2]
[423740045,1780360243000,-500.0,0.00013972,2]
[423740049,1780360243000,-500.0,0.00013972,2]
[423740051,1780360243000,-500.0,0.00013972,2]
[423740053,1780360243000,-500.0,0.00013972,2]
[423740057,1780360243000,-500.0,0.00013972,2]
[423740059,1780360243000,-500.0,0.00013972,2]
[423740047,1780360243000,-2420.62,0.00013972,2]
[423740055,1780360243000,-500.0,0.00013972,2]
[423740062,1780360243000,-500.0,0.00013972,2]
[423740063,1780360243000,-500.0,0.00013972,2]
[423740067,1780360243000,-151.0,0.00013972,2]
[423740066,1780360243000,-500.0,0.00013972,2]
[423740065,1780360243000,-151.0,0.00013972,2]
[423740068,1780360243000,-500.0,0.00013972,2]
[423739992,1780360243000,-511.53,0.00013972,2]
[423740046,1780360243000,-500.0,0.00013972,2]
[423740022,1780360243000,-500.0,0.00013972,2]
[423740041,1780360243000,-500.0,0.00013972,2]
[423740025,1780360243000,-500.0,0.00013972,2]
[423740027,1780360243000,-500.0,0.00013972,2]
[423739995,1780360243000,-500.0,0.00013972,2]
[423740000,1780360243000,-500.0,0.00013972,2]
[423739996,1780360243000,-500.0,0.00013972,2]
[423739998,1780360243000,-500.0,0.00013972,2]
[423739993,1780360243000,-500.0,0.00013972,2]
[423739997,1780360243000,-500.0,0.00013972,2]
[423740001,1780360243000,-500.0,0.00013972,2]
[423739999,1780360243000,-500.0,0.00013972,2]
[423740005,1780360243000,-500.0,0.00013972,2]
[423740003,1780360243000,-500.0,0.00013972,2]
[423740002,1780360243000,-500.0,0.00013972,2]
[423740006,1780360243000,-500.0,0.00013972,2]
[423740008,1780360243000,-500.0,0.00013972,2]
[423740019,1780360243000,-500.0,0.00013972,2]
[423740004,1780360243000,-500.0,0.00013972,2]
[423740007,1780360243000,-500.0,0.00013972,2]
[423740018,1780360243000,-500.0,0.00013972,2]
[423740024,1780360243000,-500.0,0.00013972,2]
[423740023,1780360243000,-565.05540216,0.00013972,2]
[423740021,1780360243000,-500.0,0.00013972,2]
[423740013,1780360243000,-626.8,0.00013972,2]
[423740012,1780360243000,-500.0,0.00013972,2]
[423740016,1780360243000,-500.0,0.00013972,2]
[423740026,1780360243000,-500.0,0.00013972,2]
[423740010,1780360243000,-460.53,0.00013972,2]
[423740015,1780360243000,-500.0,0.00013972,2]
[423740017,1780360243000,-502.55340743,0.00013972,2]
[423740009,1780360243000,-500.0,0.00013972,2]
[423740011,1780360243000,-500.0,0.00013972,2]
[423740020,1780360243000,-500.0,0.00013972,2]
[423740114,1780360244000,-1562.39,0.00013972,2]
[423740112,1780360244000,-500.0,0.00013972,2]
[423740110,1780360244000,-598.65,0.00013972,2]
[423740113,1780360244000,-588.59,0.00013972,2]
[423740105,1780360244000,-500.0,0.00013972,2]
[423740122,1780360244000,-500.0,0.00013972,2]
[423740109,1780360244000,-500.0,0.00013972,2]
[423740111,1780360244000,-500.0,0.00013972,2]
[423740108,1780360244000,-500.0,0.00013972,2]
[423740103,1780360244000,-500.0,0.00013972,2]
[423740102,1780360244000,-5578.401852,0.00013972,2]
[423740101,1780360244000,-5578.401852,0.00013972,2]
[423740117,1780360244000,-1548.04,0.00013972,2]
[423740121,1780360244000,-500.0,0.00013972,2]
[423740115,1780360244000,-500.0,0.00013972,2]
[423740126,1780360244000,-500.0,0.00013972,2]
[423740118,1780360244000,-244.85244127,0.00013972,2]
[423740119,1780360244000,-500.0,0.00013972,2]
[423740120,1780360244000,-199.39774311,0.00013972,2]
[423740127,1780360244000,-500.0,0.00013972,2]
[423740123,1780360244000,-737.19,0.00013972,2]
[423740128,1780360244000,-500.71825508,0.00013972,2]
[423740125,1780360244000,-500.0,0.00013972,2]
[423740130,1780360244000,-500.0,0.00013972,2]
[423740131,1780360244000,-500.0,0.00013972,2]
[423740132,1780360244000,-500.0,0.00013972,2]
[423740136,1780360244000,-500.0,0.00013972,2]
[423740135,1780360244000,-500.0,0.00013972,2]
[423740133,1780360244000,-845.4,0.00013972,2]
[423740106,1780360244000,-500.0,0.00013972,2]
[423740116,1780360244000,-770.54,0.00013972,2]
[423740099,1780360244000,-2425.26,0.00013972,2]
[423740070,1780360244000,-604.13891764,0.00013972,2]
[423740100,1780360244000,-500.8052468,0.00013972,2]
[423740129,1780360244000,-500.0,0.00013972,2]
[423740079,1780360244000,-500.0,0.00013972,2]
[423740069,1780360244000,-623.41,0.00013972,2]
[423740071,1780360244000,-500.0,0.00013972,2]
[423740080,1780360244000,-892.13,0.00013972,2]
[423740073,1780360244000,-500.0,0.00013972,2]
[423740074,1780360244000,-515.17,0.00013972,2]
[423740076,1780360244000,-500.0,0.00013972,2]
[423740078,1780360244000,-500.0,0.00013972,2]
[423740075,1780360244000,-500.0,0.00013972,2]
[423740072,1780360244000,-500.0,0.00013972,2]
[423740077,1780360244000,-500.0,0.00013972,2]
[423740082,1780360244000,-2426.39,0.00013972,2]
[423740092,1780360244000,-500.0,0.00013972,2]
[423740094,1780360244000,-585.91,0.00013972,2]
[423740083,1780360244000,-500.0,0.00013972,2]
[423740085,1780360244000,-215.37422713,0.00013972,2]
[423740104,1780360244000,-500.0,0.00013972,2]
[423740098,1780360244000,-5578.401852,0.00013972,2]
[423740097,1780360244000,-5578.401852,0.00013972,2]
[423740096,1780360244000,-500.0,0.00013972,2]
[423740095,1780360244000,-500.0,0.00013972,2]
[423740086,1780360244000,-500.0,0.00013972,2]
[423740107,1780360244000,-638.97,0.00013972,2]
[423740087,1780360244000,-957.8,0.00013972,2]
[423740091,1780360244000,-500.0,0.00013972,2]
[423740090,1780360244000,-500.0,0.00013972,2]
[423740088,1780360244000,-1819.03,0.00013972,2]
[423740093,1780360244000,-500.0,0.00013972,2]
[423740081,1780360244000,-151.86193415,0.00013972,2]
[423740084,1780360244000,-557.15165808,0.00013972,2]
[423740089,1780360244000,-500.0,0.00013972,2]
[423740134,1780360244000,-500.0,0.00013972,2]
[423740124,1780360244000,-563.81,0.00013972,2]
[423740138,1780360244000,-500.0,0.00013972,2]
[423740177,1780360244000,-500.0,0.00014246,2]
[423740173,1780360244000,-500.0,0.00014246,2]
[423740171,1780360244000,-500.0,0.00014246,2]
[423740176,1780360244000,-500.0,0.00014246,2]
[423740172,1780360244000,-500.0,0.00014246,2]
[423740179,1780360244000,-238.74,0.00014246,2]
[423740189,1780360244000,-500.0,0.00014246,2]
[423740190,1780360244000,-500.0,0.00014246,2]
[423740191,1780360244000,-500.0,0.00014246,2]
[423740180,1780360244000,-500.0,0.00014246,2]
[423740178,1780360244000,-379.86,0.00014246,2]
[423740181,1780360244000,-500.0,0.00014246,2]
[423740182,1780360244000,-500.0,0.00014246,2]
[423740187,1780360244000,-500.0,0.00014246,2]
[423740174,1780360244000,-500.0,0.00014246,2]
[423740185,1780360244000,-500.0,0.00014246,2]
[423740184,1780360244000,-500.0,0.00014246,2]
[423740183,1780360244000,-500.0,0.00014246,2]
[423740188,1780360244000,-500.0,0.00014246,2]
[423740194,1780360244000,-500.0,0.00014246,2]
[423740192,1780360244000,-415.15288562,0.00014246,2]
[423740193,1780360244000,-500.58472305,0.00014246,2]
[423740203,1780360244000,-396.61,0.00014246,2]
[423740198,1780360244000,-419.26158938,0.00014246,2]
[423740196,1780360244000,-500.0,0.00014246,2]
[423740201,1780360244000,-329.37734587,0.00014246,2]
[423740199,1780360244000,-509.79101857,0.00014246,2]
[423740200,1780360244000,-629.44,0.00014246,2]
[423740195,1780360244000,-2420.62,0.00014246,2]
[423740202,1780360244000,-623.41,0.00014246,2]
[423740186,1780360244000,-11991.94,0.00014246,2]
[423740175,1780360244000,-500.0,0.00014246,2]
[423740197,1780360244000,-635.42881924,0.00014246,2]
[423740165,1780360244000,-219.1427892,0.00014246,2]
[423740149,1780360244000,-200.0,0.00014245,2]
[423740148,1780360244000,-516.47226335,0.00014203,2]
[423740150,1780360244000,-500.0,0.00014246,2]
[423740139,1780360244000,-314.37567727,0.00013972,2]
[423740140,1780360244000,-600.13,0.00013972,2]
[423740137,1780360244000,-500.0,0.00013972,2]
[423740143,1780360244000,-516.47226335,0.0001413,2]
[423740142,1780360244000,-500.0,0.00013972,2]
[423740170,1780360244000,-185.45,0.00014246,2]
[423740144,1780360244000,-516.47226335,0.00014135,2]
[423740146,1780360244000,-516.47226335,0.00014196,2]
[423740141,1780360244000,-807.79,0.00013972,2]
[423740147,1780360244000,-794.85125374,0.000142,2]
[423740151,1780360244000,-212.28,0.00014246,2]
[423740153,1780360244000,-500.0,0.00014246,2]
[423740145,1780360244000,-516.47226335,0.00014151,2]
[423740160,1780360244000,-918.08,0.00014246,2]
[423740152,1780360244000,-500.0,0.00014246,2]
[423740169,1780360244000,-511.53,0.00014246,2]
[423740168,1780360244000,-528.84,0.00014246,2]
[423740166,1780360244000,-1034.24,0.00014246,2]
[423740167,1780360244000,-500.0,0.00014246,2]
[423740159,1780360244000,-500.0,0.00014246,2]
[423740163,1780360244000,-500.0,0.00014246,2]
[423740164,1780360244000,-500.0,0.00014246,2]
[423740161,1780360244000,-814.52,0.00014246,2]
[423740154,1780360244000,-268.0359621,0.00014246,2]
[423740156,1780360244000,-502.12816081,0.00014246,2]
[423740162,1780360244000,-500.0,0.00014246,2]
[423740157,1780360244000,-181.01,0.00014246,2]
[423740155,1780360244000,-500.0,0.00014246,2]
[423740158,1780360244000,-500.0,0.00014246,2]
[423740259,1780360245000,-500.0,0.0001452,2]
[423740258,1780360245000,-500.0,0.0001452,2]
[423740247,1780360245000,-500.0,0.0001452,2]
[423740255,1780360245000,-1034.24,0.0001452,2]
[423740254,1780360245000,-500.0,0.0001452,2]
[423740246,1780360245000,-500.0,0.0001452,2]
[423740241,1780360245000,-516.47226335,0.0001442,2]
[423740234,1780360245000,-600.13,0.00014246,2]
[423740237,1780360245000,-175.8,0.00014247,2]
[423740238,1780360245000,-1000.0,0.00014332,2]
[423740239,1780360245000,-244.0,0.00014332,2]
[423740244,1780360245000,-516.47226335,0.0001448,2]
[423740240,1780360245000,-516.47226335,0.00014349,2]
[423740249,1780360245000,-500.0,0.0001452,2]
[423740263,1780360245000,-500.0,0.0001452,2]
[423740253,1780360245000,-500.0,0.0001452,2]
[423740252,1780360245000,-500.0,0.0001452,2]
[423740256,1780360245000,-511.53,0.0001452,2]
[423740250,1780360245000,-918.08,0.0001452,2]
[423740251,1780360245000,-814.52,0.0001452,2]
[423740257,1780360245000,-618.62,0.0001452,2]
[423740261,1780360245000,-500.0,0.0001452,2]
[423740271,1780360245000,-389.88,0.0001452,2]
[423740273,1780360245000,-169.03510474,0.0001452,2]
[423740272,1780360245000,-151.0,0.0001452,2]
[423740274,1780360245000,-623.41,0.0001452,2]
[423740264,1780360245000,-494.82,0.0001452,2]
[423740260,1780360245000,-320.89,0.0001452,2]
[423740245,1780360245000,-200.0,0.00014519,2]
[423740248,1780360245000,-500.0,0.0001452,2]
[423740231,1780360245000,-576.23,0.00014246,2]
[423740219,1780360245000,-500.0,0.00014246,2]
[423740236,1780360245000,-500.0,0.00014246,2]
[423740262,1780360245000,-498.38,0.0001452,2]
[423740204,1780360245000,-892.13,0.00014246,2]
[423740206,1780360245000,-500.0,0.00014246,2]
[423740217,1780360245000,-588.59,0.00014246,2]
[423740205,1780360245000,-2426.39,0.00014246,2]
[423740216,1780360245000,-598.65,0.00014246,2]
[423740208,1780360245000,-1819.03,0.00014246,2]
[423740209,1780360245000,-500.0,0.00014246,2]
[423740211,1780360245000,-585.91,0.00014246,2]
[423740214,1780360245000,-638.97,0.00014246,2]
[423740210,1780360245000,-500.0,0.00014246,2]
[423740213,1780360245000,-500.0,0.00014246,2]
[423740212,1780360245000,-2425.26,0.00014246,2]
[423740215,1780360245000,-500.0,0.00014246,2]
[423740233,1780360245000,-500.0,0.00014246,2]
[423740218,1780360245000,-1562.39,0.00014246,2]
[423740221,1780360245000,-1548.04,0.00014246,2]
[423740222,1780360245000,-500.0,0.00014246,2]
[423740229,1780360245000,-500.0,0.00014246,2]
[423740223,1780360245000,-737.19,0.00014246,2]
[423740220,1780360245000,-770.54,0.00014246,2]
[423740225,1780360245000,-500.0,0.00014246,2]
[423740228,1780360245000,-500.0,0.00014246,2]
[423740226,1780360245000,-500.0,0.00014246,2]
[423740227,1780360245000,-500.0,0.00014246,2]
[423740224,1780360245000,-563.81,0.00014246,2]
[423740232,1780360245000,-500.0,0.00014246,2]
[423740242,1780360245000,-516.47226335,0.00014452,2]
[423740243,1780360245000,-516.47226335,0.00014477,2]
[423740235,1780360245000,-807.79,0.00014246,2]
[423740230,1780360245000,-845.4,0.00014246,2]